{"text_format":"1","workbook":"xlsx","n_sheets":11,"sheets":["Hinweise_Impressum","Erläuterung","Empfehlung","Beispiele","RK eintägig (mit Berechnung)","RK mehrtägig (mit Berechnung)","RK Monat 1","RK Monat 2","RK eintägig","RK mehrtägig","RK quer"],"not_rendered":{"charts":0,"images":2,"macros":0,"external_links":2,"defined_names":13,"comments":2,"pivot_tables":0},"unopened":[],"bounds":{"document_bytes":16777216,"sheet_cells":100000,"rows_first":2000,"rows_last":500,"rows_between":2000,"halvings":0,"cell_chars":16384,"cell_head_chars":4096},"cells_cut":0,"cells_raw":0,"read":"whole","date_system":"1900"}

{"sheet":"Hinweise_Impressum","index":0,"n_rows":25,"n_cols":2,"rows_kept":25,"cut":false,"hidden":false,"merged":[[21,1,21,2],[22,1,22,2],[24,1,24,7],[0,1,0,8],[5,1,5,6],[7,1,7,6],[12,1,12,3],[16,1,16,2],[17,1,17,4],[18,1,18,4],[19,1,19,3],[20,1,20,4]]}
[null,"Hinweise + Impressum"]
[]
[null,"1. Version"]
[null,"2021.0"]
[]
[null,"Vorliegen einer aktuelleren Version in der NWB Datenbank prüfen."]
[]
[null,"NWB Datenbank DokID: RAAAB-14409"]
[]
[null,"2. Autoren"]
[null,"Dieses Berechnungsprogramm wird inhaltlich betreut von Karl-Hermann Eckert und Ronny Sebast."]
[]
[null,"3. Haftungsausschluss / AGB"]
[null,"Der NWB Verlag übernimmt keine Gewähr und keine Haftung für die Richtigkeit der Ergebnisse."]
[null,"Im Übrigen gelten die die aktuellen AGB der NWB Datenbank und des NWB Verlages."]
[]
[null,"4. Impressum"]
[null,"NWB Verlag GmbH & Co. KG"]
[null,"AG Bochum HRA 5124"]
[null,"Eschstr. 22 · 44629 Herne"]
[null,"Fon 02323.141-900 · Fax 02323.141-123"]
[null,"E-Mail: info@nwb.de"]
[null,"Internet: www.nwb.de"]
[]
[null,"Alle Rechte vorbehalten. Vervielfältigungen nur mit Zustimmung des Verlages."]

{"sheet":"Erläuterung","index":1,"n_rows":51,"n_cols":3,"rows_kept":51,"cut":false,"hidden":false,"merged":[[2,0,2,3],[39,1,39,3]]}
[]
[]
[]
[]
[]
[null,"Dieses Excel-Tool besteht aus: "]
[]
[null,"Blatt 1 [Erläuterung]"]
[null,null,"Erläuterungstexte / diese Seite"]
[]
[null,"Blatt 2 [Empfehlung]"]
[null,null,"Arbeitsempfehlung"]
[]
[null,"Blatt 3 [Beispiele]"]
[null,null,"Musterfälle zu Reisen ab 2021"]
[]
[null,"Blatt 4 [RK eintägig (mit Berechnung)]"]
[null,null,"Reisekostenabrechnung für eintägige Reisen ab Kalenderjahr 2021"]
[]
[null,"Blatt 5 [RK mehrtägig (mit Berechnung)]"]
[null,null,"Reisekostenabrechnung für mehrtägige Reisen ab Kalenderjahr 2021"]
[]
[null,"Blatt 6 [RK Monat 1]"]
[null,null,"nicht rechnende Monats-Reisekostenabrechnung"]
[null,null,"mit KM-Erstattung und Übernachtungskosten"]
[]
[null,"Blatt 7 [RK Monat 2]"]
[null,null,"rechnende Monats-Reisekostenabrechnung für eintägige Reisen"]
[null,null,"mit KM-Erstattung"]
[]
[null,"Blatt 8 [RK eintägig]"]
[null,null,"nicht rechnendes Druckmodul für eintägige Reisen"]
[]
[null,"Blatt 9 [RK mehrtägig]"]
[null,null,"nicht rechnendes Druckmodul für mehrtägige Reisen"]
[]
[null,"Blatt 10 [RK quer]"]
[null,null,"nicht rechnendes Druckmodul für Reisekosten (Querformat)"]
[]
[null,"Hinweise:"]
[null,null,"Dieses Tool ist bis auf die Tabellenblätter \"Erläuterung\", \"Empfehlung\","]
[null,null,"und \"Beispiele\" schreibgeschützt. "]
[null,null,"Die Eingabe des Wertes \"Datum\" muss mit \"PUNKT\" erfolgen."]
[null,null,"Die Eingabe des Wertes \"Uhrzeit\" muss mit \"DOPPELPUNKT\" erfolgen."]
[null,null,"Nur in hellen Feldern können Eingaben erfolgen."]
[null,null,"Hinweise bzw. Kommentare erkennen Sie an einem roten Dreieck in der Zelle."]
[]
[]
[null,null,"Stand Dezember 2020"]
[null,null,"Karl-Hermann Eckert"]
[null,null,"Ronny Sebast"]

{"sheet":"Empfehlung","index":2,"n_rows":34,"n_cols":3,"rows_kept":34,"cut":false,"hidden":false,"merged":[[0,0,0,3],[1,0,1,3],[6,1,6,3],[11,2,12,3],[33,2,33,3],[14,2,14,3],[17,2,20,3],[15,2,16,3],[32,2,32,3]]}
[]
[]
[]
[]
[]
[]
[null,"Es wird vorgeschlagen in dieser Excel-Mappe keine Einträge vorzunehmen."]
[]
[]
[null,"Die Empfehlung lautet:"]
[]
[null,"*","Kopieren Sie diese Excel-Mappe unter einen neuen Namen über den Befehl \"Speichern unter\" (z. B.: \"Reisekosten\") auf Ihre Festplatte. "]
[]
[]
[]
[null,"*","In sämtlichen Tabellenblättern ist bei den Fahrtkosten der Pauschbetrag in Höhe von 0,30 € je km voreingestellt. "]
[]
[null,"*","Bitte beachten Sie, dass das vorliegende Tool lediglich die Grundsätze der Reisekostenberechnung berücksichtigt. Das bedeutet, dass bei der Ermittlung der Aufwendungen für Verpflegung die Versteuerung der Sachbezugswerte berücksichtigt wird. Eine Berücksichtigung von durch den Arbeitgeber zur Verfügung gestellten Mahlzeiten mit dem Sachbezugswert ist bei Mahlzeiten bis zu einem Wert von 60,00 € je Mahlzeit möglich. \n\n"]
[]
[]
[]
[null,null,"Übersteigt der Wert der zur Verfügung gestellten Mahlzeit den Wert von 60,00 € ist der tatsächliche Wert der "]
[null,null,"Mahlzeit als geldwerter Vorteil zu versteuern. Sofern keine Besteuerung der Sachbezugswerte erfolgt, "]
[null,null,"werden die gesetzlichen Pauschbeträge für Verpflegungsmehraufwendungen entsprechend der unentgeltlich "]
[null,null,"zur Verfügung gestellten Mahlzeiten gekürzt."]
[]
[null,null,"Die ab dem 1. Januar 2021 geltenden Pauschbeträge der Sachbezugswerte für Mahlzeiten an Arbeitnehmern"]
[null,null,"wurden mit BMF-Schreiben vom 28.12.2020 - IV C 5 - S 2334/19/10010 :002 (NWB FAAAH-67678) "]
[null,null,"festgesetzt."]
[]
[null,null,"Aktuelle Entwicklungen, Zweifelsfragen und akute Fallstricke sind in einer Sonderausgabe des Verlags enthalten."]
[]
[null,null,"Weitere rechtliche Hinweise enthalten die aktuellen Lohnsteuer-Richtlinien (LStR) "]
[null,null,"bzw. Lohnsteuer-Hinweise (LStH)."]

{"sheet":"Beispiele","index":3,"n_rows":56,"n_cols":4,"rows_kept":56,"cut":false,"hidden":false,"merged":[[0,0,0,6]]}
[]
[]
[]
[null,"Beispiel 1: "]
[null,"Der Arbeitnehmer ist auf einer dreitägigen Auswärtstätigkeit. Der Arbeitgeber hat für den Arbeitnehmer in einem Hotel zwei  "]
[null,"Übernachtungen gebucht und bezahlt. Am Zwischentag erhält der Arbeitnehmer Frühstück und Mittag, am Abreisetag ein Frühstück."]
[null,"Der Arbeitnehmer erhält vom Arbeitgeber keine weiteren Reisekostenerstattungen."]
[null,"Der Arbeitgeber muss keinen geldwerten Vorteil für die Mahlzeiten versteuern. Der Arbeitnehmer kann für die Auswärtstätigkeit  "]
[null,"folgende Verpflegungspauschalen als Werbungskosten geltend machen: "]
[]
[null,"Anreisetag  ",14]
[null,"Abreisetag ",14]
[null,"Zwischentag",28]
[null,"Gesamt",56]
[null,"Kürzung",22.4,"(2 x 5,60 Euro Frühstück, 1 x 11,20 Euro Mittag-/ Abendessen)"]
[null,"Verbleiben ",33.6]
[]
[null,"Beispiel 2: "]
[null,"Wie Beispiel 1, allerdings zahlt der Arbeitnehmer für das Mittagessen jeweils 5 Euro zu."]
[null,"Der Arbeitgeber muss keinen geldwerten Vorteil für die Mahlzeiten versteuern. Der Arbeitnehmer kann für die Auswärtstätigkeit"]
[null,"folgende Verpflegungspauschalen als Werbungskosten geltend machen: "]
[]
[null,"Anreisetag ",14]
[null,"Abreisetag ",14]
[null,"Zwischentag ",28]
[null,"Gesamt ",56]
[null,"Kürzung 18,80 Euro",17.399999999999999," (2 x 5,60 Euro, 1 x 6,20 Euro [11,20 Euro abzgl. 5,00 Euro Zuzahlung])"]
[null,"Verbleiben ",38.6]
[]
[null,"Beispiel 3:"]
[null,"Wie Beispiel 1, allerdings zahlt der Arbeitnehmer für das Mittagessen 12 Euro."]
[null,"Der Arbeitgeber muss keinen geldwerten Vorteil für die Mahlzeiten versteuern. Der Arbeitnehmer kann für die "]
[null,"Auswärtstätigkeit folgende Verpflegungspauschalen als Werbungskosten geltend machen:"]
[]
[null,"Anreisetag",14]
[null,"Abreisetag",14]
[null,"Zwischentag ",28]
[null,"Gesamt ",56]
[null,"Kürzung",11.2," (2 x 5,60 Euro,  1 x 0 Euro [11,20 Euro abzgl. 12,00 Euro Zuzahlung])"]
[null,"Verbleiben ",44.8]
[]
[null,"Beispiel 4:"]
[null,"Der Arbeitnehmer nimmt an einer eintägigen Fortbildungsveranstaltung teil. Der Arbeitgeber hat für den Arbeitnehmer"]
[null,"auf dieser Fortbildungsveranstaltung ein Mittagessen gebucht und bezahlt. Der Arbeitgeber besteuert das Mittagessen"]
[null,"nach § 40 Absatz 2 Satz 1 Nummer 1a EStG - neu - pauschal, da er keine Aufzeichnungen über die Abwesenheit des "]
[null,"Arbeitnehmer führt. Der Arbeitnehmer erhält vom Arbeitgeber keine weiteren Reisekostenerstattungen."]
[null,"Der Arbeitnehmer kann anhand seiner Bahntickets gegenüber dem Finanzamt nachweisen, dass er für die Fortbildung"]
[null,"insgesamt 10 Stunden von seiner Wohnung und seiner ersten Tätigkeitsstätte abwesend war. "]
[null,"Er kann für die Fortbildung folgende Verpflegungspauschalen als Werbungskosten geltend machen:"]
[]
[null,"Eintägige Tätigkeit ",14]
[null,"Kürzung ",11.2]
[null,"Verbleiben ",2.8]
[]
[null,"Hat der Arbeitnehmer steuerfreie Erstattungen für Verpflegung vom Arbeitgeber erhalten, ist im Gegenzug ein "]
[null,"Werbungskostenabzug insoweit ausgeschlossen."]

{"sheet":"RK eintägig (mit Berechnung)","index":4,"n_rows":94,"n_cols":21,"rows_kept":94,"cut":false,"hidden":false,"merged":[[28,2,28,6],[10,3,10,4],[5,12,13,14],[33,1,33,3],[5,3,5,10],[19,3,19,10],[20,3,20,10],[15,3,15,4],[13,3,13,4],[15,8,15,9],[14,12,15,14],[85,1,85,4],[50,3,50,5],[67,1,67,5],[69,1,69,5],[77,1,77,7],[56,6,56,7],[71,1,71,5],[54,1,54,8]]}
[]
[]
[]
[]
[]
[null,"Name des Reisenden:",null,null,null,null,null,null,null,null,null,null,{"$f":"IF(AND(D16-D14>0,U18>U19),\"Die Abwesenheit übersteigt die Dauer von 24 Stunden, daher handelt es sich um eine mehrtätige Reise. Bitte wechseln Sie zum Tabellenblatt Reisekosten mehrtägig.\",\"\")","v":""}]
[]
[]
[]
[]
[null,null,null,"Datum",null,null,"Uhrzeit",null,"Reisedauer"]
[]
[null,null,null,null,null,null,null,null,null,null,null,null,null,null,null,null,null,null,"Tag","Dauer"]
[null,"Abfahrt",null,null,null,null,null,null,null,null,null,null,null,null,null,null," ",null,1,{"$f":"G14","v":"00:00:00"},{"$f":"IF(OR(G14=\"\",G16=\"\"),\"0:00\",S14-T14)","v":"0:00"}]
[null,null,null,null,null,null,null,null,null,null,null,null,{"$f":"IF(OR(D14=\"\",D16=\"\"),\"\",IF(OR(D14=\"\",D16=D14+1,D16=D14),\"\",\"Tage nicht direkt aufeinanderfolgend!\"))","v":""},null,null,null," "]
[null,"Rückkehr",null,null,null,null,null,null,"Abwesenheit",null,{"$f":"IF(OR(G14=\"\",G16=\"\"),\"\",IF(D16-D14>0,U14+U16,G16-G14))","v":""},null,null,null,null,null," ",null,null,{"$f":"G16","v":"00:00:00"},{"$f":"IF(OR(G14=\"\",G16=\"\"),\"0:00\",G16)","v":"0:00"}]
[]
[null,null,null,null,null,null,null,null,null,null,null,null,null,null,null,null,null,null,null,null,{"$f":"SUM(U14:U16)","v":0}]
[null,null,null,null,null,null,null,null,null,null,null,null,null,null,null,null,null,null,null,null,1]
[null,"Grund und Ort"]
[null,"der Reise"]
[]
[]
[]
[]
[]
[]
[]
[null,null,"Reisekostenabrechnung",null,null,null,null,null,null,null,"Euro",null,"in Rechnungen",null,"Konto"]
[null,null,null,null,null,null,null,null,null,null,null,null,"enthaltene"]
[null,null,null,null,null,null,null,null,null,null,null,null,"Vorsteuer"]
[]
[]
[null,"Pauschale für Mehraufwand für Verpflegung"]
[]
[null,"eintägige Reise",null,null,{"$f":"IF(D14<>\"\",IF(+K16>0.33334,1,0),\"\")","v":""},{"$f":"IF(E36=1,\"Tag\",\"Tage\")","v":"Tage"},"zu ",{"$f":"IF(K16=\"\",\"0,00 €\",IF(K16>TIME(23,59,59),28,IF(K16>TIME(8,0,0),14,IF(K16=TIME(0,0,0),\"0,00 €\",\"0,00 €\"))))","v":"0,00 €"},{"$f":"IF(E36<>\"\",+E36*H36,\"\")","v":""}]
[null,null,null,null,null,null,null,null,null,null,{"$f":"IF(D14<>\"\",+I36,0)","v":0}]
[]
[]
[]
[null,"Beförderungskosten"]
[]
[null,"mit eigenem Fahrzeug",null,null,null,"km","zu ",0.3,{"$f":"+E43*H43","v":0}]
[]
[null,"mit Bahn ",null,null,null,null,null,"lt. Einzelnachweis"]
[null,null,null,null,null,null,null,null," "]
[null,"mit Taxi ",null,null,null,null,null,"lt. Einzelnachweis"]
[]
[null,"mit Flugzeug",null,null,null,null,null,"lt. Einzelnachweis"]
[]
[null,"sonstiges",null,null,null,null,null,"lt. Einzelnachweis"]
[null,null,null,null,null,null,null,null,null,null,{"$f":"+I43+I45+I47+I49+I51","v":0}]
[]
[]
[null,"Kürzung wegen Verköstigung durch den Arbeitgeber (entsprechende Mahlzeit durch Häkchen markieren)"]
[]
[null,null,null,null,null,null,"Kürzungsbetrag",null,"Zuzahlung des Arbeitnehmers",null,null,null,null,null,null,null,null,null,"Kürzungsbetrag"]
[null,"für Frühstück ",null,0.2,null,null,null,{"$f":"IF(Q58=TRUE,5.6,0)","v":0},null,null,null,null,null,null,null,null,false,null,{"$f":"MAX(H58-I58,MIN(0))","v":0}]
[null,"für Mittagessen",null,0.4,null,null,null,{"$f":"IF(Q59=TRUE,11.2,0)","v":0},null,null,null,null,null,null,null,null,false,null,{"$f":"MAX(H59-I59,MIN(0))","v":0}]
[null,"für Abendessen",null,0.4,null,null,null,{"$f":"IF(Q60=TRUE,11.2,\"0,00 €\")","v":"0,00 €"},null,null,null,null,null,null,null,null,false,null,{"$f":"MAX(H60-I60,MIN(0))","v":0}]
[null,null,null,null,null,null,null,null,"Kürzungsbetrag",null,{"$f":"MIN(T62,MAX(K37))","v":0}]
[null,null,null,null,null,null,null,null,null,null,null,null,null,null,null,null,null,null,{"$f":"SUM(S58:S60)","v":0},{"$f":"MIN(S62,MAX(H36))","v":0}]
[]
[]
[]
[null,"sonstige Aufwendungen"]
[]
[null,null,null,null,null,null,null,"lt. Einzelnachweis"]
[null,null,null,null," "]
[null,null,null,null,null,null,null,"lt. Einzelnachweis"]
[null,null,null," "]
[null,null,null,null,null,null,null,"lt. Einzelnachweis"]
[null,null,null,null,null,null,null,null,null,null,{"$f":"+I68+I70+I72","v":0}]
[]
[]
[null,"Der Ansatz eines Sachbezugswertes entfällt, wenn der Arbeitnehmer einen Anspruch auf einen Pauschbetrag für Verpflegung hat!"]
[]
[null,"Geldwerter Vorteil (nur für Arbeitnehmer) - Ist Verrechnung mit den Reisekosten erwünscht?  ►",null,null,null,null,null,null,null,null,null,null,null,null,null,null,false]
[]
[null,"für Frühstück",null,null,null,null,null,{"$f":"IF(Q80=TRUE,1.83,\"\")","v":""},null,null,null,null,null,null,null,null,false]
[null,"für Mittagessen",null,null,null,null,null,{"$f":"IF(Q81=TRUE,3.47,\"\")","v":""},null,null,null,null,null,null,null,null,false]
[null,"für Abendessen",null,null,null,null,null,{"$f":"IF(Q82=TRUE,3.47,\"\")","v":""},null,null,null,null,null,null,null,null,false]
[]
[]
[null,"Summe Geldwerter Vorteil"," ",null,null,null,null,{"$f":"SUM(H80:H82)","v":0},null,null,{"$f":"IF(Q78=TRUE,-H85,\"\")","v":""}]
[null," "]
[]
[]
[]
[null,"gesamte Reisekosten",null,null,null,null,null,null,"Summe",null,{"$f":"IF(Q78=TRUE,K37+K52-K61+K73+K85,K37+K52-K61+K73)","v":0},null,{"$f":"SUM(M32:M88)","v":0}]
[]
[null,"ausgezahlter Vorschuss"]
[]
[null,"verbleibende Reisekosten",null,null,null,null,null,null,"Summe",null,{"$f":"K90-K92","v":0}]

{"sheet":"RK mehrtägig (mit Berechnung)","index":5,"n_rows":114,"n_cols":20,"rows_kept":114,"cut":false,"hidden":false,"merged":[[3,2,3,9],[6,2,6,3],[9,2,9,3],[11,2,11,3],[65,2,65,4],[11,11,11,13],[14,2,14,9],[15,2,15,9],[19,2,19,5],[100,1,100,7],[76,1,76,7],[73,1,73,4],[71,1,71,4]]}
[]
[]
[]
[null,"Name des Reisenden:"]
[]
[]
[null,null,"Datum",null,null,"Uhrzeit",null,"Reisedauer"]
[]
[]
[null,"Abfahrt",null,null,null,null,null,null,"Gesamtdauer in Tagen",{"$f":"IF(OR(C10=\"\",C12=\"\"),\"\",IF(AND(F10=TIME(0,0,0),F12=TIME(0,0,0)),+C12-C10,+C12-C10+1))","v":""},null,null,null,null,null,null," "]
[null,null,null,null,null,null,null,null,null,null,null,null,null,null,null,null,"Hilfsspalte 24.00 Uhr"]
[null,"Rückkehr",null,null,null,null,null,null,null,null,null,{"$f":"IF(OR(C12>C10,C12=\"\"),\"\",\"falsches Datum\")","v":""},null,null,null,null,"Beginn","Ende"]
[null,null,null,null,null,null,null,null,null,null,null,null,null,null,null,null,"23:59:00"]
[]
[null,"Grund und Ort"]
[null,"der Reise"]
[]
[]
[]
[null,null,"Reisekostenabrechnung",null,null,null,null,null,null,"Euro",null,"in Rechnungen",null,"Konto"]
[null,null,null,null,null,null,null,null,null,null,null,"enthaltene"]
[null,null,null,null,null,null,null,null,null,null,null,"Vorsteuer"]
[null,"Pauschale für Mehraufwand für Verpflegung"]
[]
[null,"volle Reisetage = Tagessatz",null,{"$f":"IF(OR(C10=\"\",C12=\"\"),\"0\",IF(AND(D27=0,D29=0),J10,IF(F12=TIME(0,0,0),J10-2,IF(AND(D27=0,D29=1),J10-1,IF(AND(D27=1,D29=0),J10-1,J10-2)))))","v":"0"},"Tage","zu",28,{"$f":"IF(D25>\"0\",0,+D25*G25)","v":0}]
[]
[null,"erster Reisetag",null,{"$f":"IF(OR(C10=\"\",C12=\"\"),\"0\",IF(F10=TIME(0,0,0),0,1))","v":"0"},"Tage","zu",14,{"$f":"+D27*G27","v":0}]
[]
[null,"letzter Reisetag",null,{"$f":"IF(OR(C10=\"\",C12=\"\"),\"0\",IF(AND(F10=TIME(0,0,0),F12=TIME(0,0,0)),0,IF(OR(F12>Q13,F12=TIME(0,0,0)),0,1)))","v":"0"},"Tage","zu ",14,{"$f":"+D29*G29","v":0},null,{"$f":"+H25+H27+H29","v":0}]
[]
[]
[]
[null,"Übernachtungskosten bei Buchung durch den Arbeitgeber"]
[]
[null,"Übernachtung mit Frühstück (Wert ohne Frühstück) ",null,null,"Tage","zu ",null,{"$f":"+D35*G35","v":0}]
[null,"zuzüglich Frühstück - Frühstück getrennt ausgewiesen -",null,{"$f":"+D35","v":0},"Tage","zu ",null,{"$f":"+D36*G36","v":0}]
[]
[null,"Übernachtung ohne Frühstück",null,null,"Tage","zu ",null,{"$f":"+D38*G38","v":0}]
[null,null,null,null,null,null,null,null,null,{"$f":"SUM(H35:H38)","v":0}]
[]
[null,"Übernachtungskosten bei Buchung durch den Reisenden/ Arbeitnehmer"]
[]
[null,"Übernachtung mit Frühstück (Wert ohne Frühstück) ",null,null,"Tage","zu ",null,{"$f":"+D43*G43","v":0}]
[null,"zuzüglich Frühstück - Frühstück getrennt ausgewiesen -",null,{"$f":"+D43","v":0},"Tage","zu ",null,{"$f":"+D44*G44","v":0}]
[]
[null,"Übernachtung ohne Frühstück",null,null,"Tage","zu ",null,{"$f":"+D46*G46","v":0}]
[null,null,null,null,null,null,null,null,null,{"$f":"SUM(H43:H46)","v":0}]
[]
[]
[null,"Übernachtungskosten (Pauschale nur für Arbeitnehmer)"]
[]
[null,"Pauschale für Arbeitnehmer bei Erstattung durch Arbeitgeber",null,null,"Tage","zu ",20,{"$f":"+D52*G52","v":0},null,{"$f":"+H52","v":0}]
[]
[]
[]
[null,"Beförderungskosten"]
[]
[null,"mit eigenem Fahrzeug",null,null,"km","zu ",0.3,{"$f":"IF(D58=\"\",0,+D58*G58)","v":0}]
[]
[null,"mit Bahn ",null,null,null,null,"lt. Einzelnachweis"]
[null,null,null,null,null,null,null," "]
[null,"mit Taxi ",null,null,null,null,"lt. Einzelnachweis"]
[]
[null,"mit Flugzeug",null,null,null,null,"lt. Einzelnachweis"]
[]
[null,"sonstiges",null,null,null,null,"lt. Einzelnachweis"]
[null,null,null,null,null,null,null,null,null,{"$f":"+H58+H60+H62+H64+H66","v":0}]
[]
[]
[null,"sonstige Aufwendungen"]
[]
[null,null,null,null,null,null,"lt. Einzelnachweis"]
[null,null," "]
[null," ",null,null,null,null,"lt. Einzelnachweis"]
[null,null,null,null,null,null,null,null,null,{"$f":"+H72+H74","v":0}]
[]
[null,"Kürzung wegen Verpflegung durch den Arbeitgeber"]
[]
[null,"Anreisetag",null,null,null,null,null,null,null,null,null,null,null,null,null,null,"max.Kürzungsbetrag"]
[null,"für Frühstück ",null,null,null,"Zuzahlung",null,{"$f":"MAX(S80-G80,MIN(0))","v":0},null,null,null,null,null,null,false,false,{"$f":"G25*20%","v":5.6000000000000005},null,{"$f":"IF(P80=TRUE,Q80,\"0,00 €\")","v":"0,00 €"}]
[null,"für Mittagessen",null,null,null,"Zuzahlung",null,{"$f":"MAX(S81-G81,MIN(0))","v":0},null,null,null,null,null,null,false,false,{"$f":"G25*40%","v":11.200000000000001},null,{"$f":"IF(P81=TRUE,Q81,\"0,00 €\")","v":"0,00 €"}]
[null,"für Abendessen",null,null,null,"Zuzahlung",null,{"$f":"MAX(S82-G82,MIN(0))","v":0},null,{"$f":"-T83","v":0},null,null,null,null,false,false,{"$f":"G25*40%","v":11.200000000000001},null,{"$f":"IF(P82=TRUE,Q82,\"0,00 €\")","v":"0,00 €"}]
[null,null,null,null,null,null,null,null,null,null,null,null,null,null,null,null,null,null,{"$f":"SUM(S80:S82)","v":0},{"$f":"MIN(H80+H81+H82,MAX(G27))","v":0}]
[null,"Aufenthalt"]
[null,"für Frühstück",0.2,null,"Tage","zu ",{"$f":"IF(D85=0,\"\",+G25*C85)","v":""},{"$f":"IF(D85=0,0,+D85*G85)","v":0},null,null,null,null,null,null,null,null,"Frühstuck",{"$f":"MAX(H85-H90,MIN(0))","v":0}]
[null,"für Mittagessen",0.4,null,"Tage","zu ",{"$f":"IF(D86=\"\",\"\",+G25*C86)","v":""},{"$f":"IF(D86=0,0,+D86*G86)","v":0},null,null,null,null,null,null,null,null,"Mittag",{"$f":"MAX(H86-H91,MIN(0))","v":0}]
[null,"für Abendessen",0.4,null,"Tage","zu ",{"$f":"IF(D87=\"\",\"\",+G25*C87)","v":""},{"$f":"IF(D87=0,0,+D87*G87)","v":0},null,null,null,null,null,null,null,null,"Abendbrot",{"$f":"MAX(H87-H92,MIN(0))","v":0}]
[null,null,null,null,null,null,null,null,null,null,null,null,null,null,null,null,null,{"$f":"SUM(R85:R87)","v":0}]
[null,"geleistete Zuzahlungen des Reisenden während des Aufenthaltes"]
[null,"für Frühstück ",null,null,"Tage","zu ",null,{"$f":"MIN(IF(D90=\"\",0,+D90*IF(G90>=G85,5.6,G90)))","v":0},null,null,null,null,null,null,null,null,null,{"$f":"MAX(H85-H90,\"0,00 €\")","v":0}]
[null,"für Mittagessen",null,null,"Tage","zu ",null,{"$f":"MIN(IF(D91=\"\",0,+D91*IF(G91>=G86,11.2,G91)))","v":0},null,null,null,null,null,null,null,null,null,{"$f":"MAX(H86-H91,\"0,00 €\")","v":0}]
[null,"für Abendessen",null,null,"Tage","zu ",null,{"$f":"MIN(IF(D92=\"\",0,+D92*IF(G92>=G87,11.2,G92)))","v":0},null,{"$f":"-R88","v":0},null,null,null,null,null,null,null,{"$f":"MAX(H87-H92,\"0,00 €\")","v":0}]
[]
[]
[null,"Abreisetag"]
[null,"für Frühstück ",null,null,null,"Zuzahlung",null,{"$f":"MAX(S96-G96,MIN(0))","v":0},null,null,null,null,null,null,false,false,{"$f":"G25*20%","v":5.6000000000000005},null,{"$f":"IF(P96=TRUE,Q96,\"0,00 €\")","v":"0,00 €"}]
[null,"für Mittagessen",null,null,null,"Zuzahlung",null,{"$f":"MAX(S97-G97,MIN(0))","v":0},null,null,null,null,null,null,false,false,{"$f":"G25*40%","v":11.200000000000001},null,{"$f":"IF(P97=TRUE,Q97,\"0,00 €\")","v":"0,00 €"}]
[null,"für Abendessen",null,null,null,"Zuzahlung",null,{"$f":"MAX(S98-G98,MIN(0))","v":0},null,{"$f":"-T100","v":0},null,null,null,null,false,false,{"$f":"G25*40%","v":11.200000000000001},null,{"$f":"IF(P98=TRUE,Q98,\"0,00 €\")","v":"0,00 €"}]
[]
[null,null,null,null,null,null,null,null,null,null,null,null,null,null,null,null,null,null,{"$f":"SUM(S96:S98)","v":0},{"$f":"MIN(H96+H97+H98,MAX(G27))","v":0}]
[null,"Kürzung der Hotelkosten bei Buchung durch den Reisenden/Arbeitnehmer um die Beträge der Mahlzeiten"]
[]
[null,"für Frühstück bei Übernachtung (aus Zeile 44)",null,{"$f":"IF(D44>0,+D44,0)","v":0},"Tage","zu ",{"$f":"+G44","v":0},{"$f":"+D103*G103","v":0}]
[null,"für Mittagessen",null,null,"Tage","zu ",null,{"$f":"+D104*G104","v":0}]
[null,"für Abendessen",null,null,"Tage","zu ",null,{"$f":"+D105*G105","v":0},null,{"$f":"-SUM(H103+H104+H105)","v":0}]
[]
[]
[]
[]
[null,"gesamte Reisekosten",null,null,null,null,null,"Summe",null,{"$f":"MAX(R110,MIN(0))","v":0},null,{"$f":"SUM(L23:L107)","v":0},null,null,null,null,null,{"$f":"SUM(J22:J109)","v":0}]
[]
[null,"ausgezahlter Vorschuss"]
[]
[null,"verbleibende Reisekosten",null,null,null,null,null,"Summe",null,{"$f":"J110-J112","v":0}]

{"sheet":"RK Monat 1","index":6,"n_rows":53,"n_cols":22,"rows_kept":53,"cut":false,"hidden":false,"merged":[[1,0,1,21],[3,4,3,18],[50,6,50,9],[51,6,51,9],[52,6,52,9],[6,9,6,12],[0,0,0,21],[6,6,8,6],[6,21,8,21],[6,15,8,15],[6,0,8,0],[6,18,8,18]]}
[]
["nicht vollständig rechnend"]
[]
[null,null,null,"für den Monat"]
[]
[]
["Da- tum",null,null,null,null,null,"gefahrene Kilometer",null,null,"U h r z e i t",null,null,null,null,null,"Dauer Ab- wesenheit",null,null,"Verpflegungs- pauschale",null,null,"Übernach- tung"]
[null,null,null,"Reiseort und Reisezweck",null,null,null,null,null,"Abfahrt",null,null,"Rückkehr"]
[]
[]
[]
[1]
[{"$f":"+A12+1","v":2}]
[3]
[4]
[5]
[6]
[7]
[8]
[9]
[10]
[11]
[12]
[13]
[14]
[15]
[16]
[17]
[18]
[19]
[20]
[21]
[22]
[23]
[24]
[25]
[26]
[27]
[28]
[29]
[30]
[31]
[]
[]
[null,null,null,null,"gefahrene Kilometer",null,{"$f":"SUM(G12:G42)","v":0},null,null,null,null,null,null,null,null,null,null,null,{"$f":"SUM(S12:S42)","v":0},null,null,{"$f":"SUM(V12:V42)","v":0}]
[]
[]
[null,null,null,null," Kilometergeld pro km zu je",null,0.3,null,null,null,null,null,{"$f":"G45*G48","v":0}]
[]
[]
[null,null,null,"Verpflegungspauschale:"]
[null,null,null,null,null,null,"eintägig",null,null,null,null,null,14]
[null,null,null,null,null,null,"über 24 Stunden",null,null,null,null,null,28,null,null,"nur bei mehrtägigen Reisen"]

{"sheet":"RK Monat 2","index":7,"n_rows":52,"n_cols":20,"rows_kept":52,"cut":false,"hidden":false,"merged":[[51,6,51,9],[6,9,6,12],[6,6,8,6],[0,0,0,19],[6,15,7,16],[1,0,1,19],[50,6,50,9],[6,0,8,0],[6,19,8,19],[3,4,3,18]]}
[]
["nicht geeignet für mehrtägige Reisen"]
[]
[null,null,null,"für den Monat"]
[]
[]
["Da- tum",null,null,null,null,null,"gefahrene Kilometer",null,null,"U h r z e i t",null,null,null,null,null,"Abwesenheit",null,null,null,"Verpflegungs- pauschale"]
[null,null,null,"Reiseort und Reisezweck",null,null,null,null,null,"Abfahrt",null,null,"Rückkehr"]
[null,null,null,null,null,null,null,null,null,null,null,null,null,null,null,null,"Stunden"]
[]
[]
[1,null,null,null,null,null,null,null,null,null,null,null,null,null,null,{"$f":"+Q12","v":0},{"$f":"+M12-J12","v":"00:00:00"},null,null,{"$f":"IF(+P12>0.33334,14,0)","v":0}]
[{"$f":"+A12+1","v":2},null,null,null,null,null,null,null,null,null,null,null,null,null,null,0,"00:00:00",null,null,{"$f":"IF(+P13>0.33334,14,0)","v":0}]
[3,null,null,null,null,null,null,null,null,null,null,null,null,null,null,0,"00:00:00",null,null,0]
[4,null,null,null,null,null,null,null,null,null,null,null,null,null,null,0,"00:00:00",null,null,0]
[5,null,null,null,null,null,null,null,null,null,null,null,null,null,null,0,"00:00:00",null,null,0]
[6,null,null,null,null,null,null,null,null,null,null,null,null,null,null,0,"00:00:00",null,null,0]
[7,null,null,null,null,null,null,null,null,null,null,null,null,null,null,0,"00:00:00",null,null,0]
[8,null,null,null,null,null,null,null,null,null,null,null,null,null,null,0,"00:00:00",null,null,{"$f":"IF(+P19>0.33334,14,0)","v":0}]
[9,null,null,null,null,null,null,null,null,null,null,null,null,null,null,0,"00:00:00",null,null,0]
[10,null,null,null,null,null,null,null,null,null,null,null,null,null,null,0,"00:00:00",null,null,0]
[11,null,null,null,null,null,null,null,null,null,null,null,null,null,null,0,"00:00:00",null,null,0]
[12,null,null,null,null,null,null,null,null,null,null,null,null,null,null,0,"00:00:00",null,null,0]
[13,null,null,null,null,null,null,null,null,null,null,null,null,null,null,0,"00:00:00",null,null,0]
[14,null,null,null,null,null,null,null,null,null,null,null,null,null,null,0,"00:00:00",null,null,{"$f":"IF(+P25>0.33334,14,0)","v":0}]
[15,null,null,null,null,null,null,null,null,null,null,null,null,null,null,0,"00:00:00",null,null,0]
[16,null,null,null,null,null,null,null,null,null,null,null,null,null,null,0,"00:00:00",null,null,0]
[17,null,null,null,null,null,null,null,null,null,null,null,null,null,null,0,"00:00:00",null,null,0]
[18,null,null,null,null,null,null,null,null,null,null,null,null,null,null,0,"00:00:00",null,null,0]
[19,null,null,null,null,null,null,null,null,null,null,null,null,null,null,0,"00:00:00",null,null,0]
[20,null,null,null,null,null,null,null,null,null,null,null,null,null,null,0,"00:00:00",null,null,0]
[21,null,null,null,null,null,null,null,null,null,null,null,null,null,null,0,"00:00:00",null,null,{"$f":"IF(+P32>0.33334,14,0)","v":0}]
[22,null,null,null,null,null,null,null,null,null,null,null,null,null,null,0,"00:00:00",null,null,{"$f":"IF(+P33>0.33334,14,0)","v":0}]
[23,null,null,null,null,null,null,null,null,null,null,null,null,null,null,0,"00:00:00",null,null,0]
[24,null,null,null,null,null,null,null,null,null,null,null,null,null,null,0,"00:00:00",null,null,0]
[25,null,null,null,null,null,null,null,null,null,null,null,null,null,null,0,"00:00:00",null,null,0]
[26,null,null,null,null,null,null,null,null,null,null,null,null,null,null,0,"00:00:00",null,null,0]
[27,null,null,null,null,null,null,null,null,null,"16:00:00",null,null,null,null,0,"00:00:00",null,null,0]
[28,null,null,null,null,null,null,null,null,null,null,null,null,null,null,0,"00:00:00",null,null,0]
[29,null,null,null,null,null,null,null,null,null,null,null,null,null,null,0,"00:00:00",null,null,0]
[30,null,null,null,null,null,null,null,null,null,null,null,null,null,null,0,"00:00:00",null,null,0]
[31,null,null,null,null,null,null,null,null,null,null,null,null,null,null,0,"00:00:00",null,null,0]
[]
[]
[null,null,null,null,"gefahrene Kilometer",null,{"$f":"SUM(G12:G42)","v":0},null,null,null,null,null,null,null,null,null,null,null,null,{"$f":"SUM(T12:T44)","v":0}]
[]
[]
[null,null,null,null," Kilometergeld pro km zu je",null,0.3,null,null,null,null,null,null,null,null,null,{"$f":"G45*G48","v":0}]
[]
[]
[]
[null,null,null,"gesamte Reisekosten",null,null,{"$f":"Q48+T45","v":0}]

{"sheet":"RK eintägig","index":8,"n_rows":55,"n_cols":7,"rows_kept":55,"cut":false,"hidden":false,"merged":[[0,0,0,6],[25,0,25,5],[11,1,12,1],[11,3,12,3],[14,3,15,3],[5,1,5,6],[2,0,2,21],[44,0,44,5],[19,1,19,6],[27,0,27,5],[14,5,15,5],[36,0,36,5],[14,1,15,1],[14,6,15,6],[18,1,18,6]]}
[]
[]
["nicht rechnend"]
[]
[]
["Name des Reisenden:"]
[]
[]
[null,"Datum",null,"Uhrzeit"]
[]
[]
[]
["Abfahrt"]
[]
[null,null,null,null,null,null," "]
["Rückkehr",null," "]
[]
[]
["Grund und Ort"]
["der Reise"]
[]
[]
[]
[]
[]
["Abrechnung",null,null,null,null,null,"Euro"]
[]
["Kostenpauschale für Mehraufwand für Verpflegung"]
[]
[]
[null,1,"Tag","zu",14," "]
[]
[]
[]
[]
[]
["Nebenkosten"]
[]
["Kilometergeld",null,"km","zu",0.3]
[]
["sonstiges",null,null,"Euro"]
[]
[]
[]
["Reisekosten gesamt"]
[]
[]
[]
["Ich bestätige durch Unterschrift die Richtigkeit der obigen Angaben und Abrechnung"]
[]
[]
[]
[]
[". . . . . . . . . . . . . . . . . . . . . . . . . . . . . . .","den",". . . . . . . . . . . . . . . . . . . . . . . . . . . . . . .",null," ",". . . . . . . . . . . . . . . . . . . . . . . . . ."]
["Ort"," ","Datum",null,null,"Unterschrift"]

{"sheet":"RK mehrtägig","index":9,"n_rows":66,"n_cols":8,"rows_kept":66,"cut":false,"hidden":false,"merged":[[2,1,2,7],[56,1,56,2],[1,1,1,7],[0,1,0,7],[23,1,23,6],[8,6,8,7],[26,1,26,6],[5,2,5,7],[17,2,17,7],[18,2,18,7],[3,0,3,21]]}
[]
[]
[null,"nicht rechnend"]
[]
[]
[null,"Name des Reisenden:"]
[]
[]
[null,null,"Datum",null,"Uhrzeit",null,"Reisedauer"]
[]
[]
[null,"Abfahrt",null,null,null,null,"Gesamtdauer in Tagen"]
[]
[null,null,null,null," "]
[null,"Rückkehr",null," "]
[]
[]
[null,"Grund und Ort"]
[null,"der Reise"]
[]
[]
[]
[]
[null,"Reisekostenabrechnung",null,null,null,null,null,"Euro"]
[]
[]
[null,"Kostenpauschale für Mehraufwand für Verpflegung"]
[]
[null,"volle Reisetage"]
[]
[null,"über 24 Stunden",null,"Tag(e)","zu",28," "]
[]
[null,"erster Reisetag",null,null,null,null," "]
[]
[]
[null,"zeitunabhängig"," ","Tag","zu",14," "]
[]
[null,"letzter Reisetag",null,null,null,null," "]
[]
[]
[null,"zeitunabhängig"," ","Tag","zu",14," "," "]
[]
[]
[]
[]
[null,"Nebenkosten"]
[]
[null,null,"Übernachtungskosten (Einzelnachweis)",null,"Euro"," "," "]
[]
[null,"Kürzung für Frühstück",null,"Tag(e)","zu",5.6," "]
[]
[null,"Kilometergeld"," ","km","zu",0.3," "]
[]
[null,"sonstiges"," ",null,"Euro",null," "," "]
[]
[]
[null,"Reisekosten gesamt",null,null,null,null,null,"      "]
[]
[]
[null,"Ich bestätige durch Unterschrift die Richtigkeit der obigen Angaben und Abrechnung"]
[]
[]
[]
[]
[null,". . . . . . . . . . . . . . . . . . . . . . . . . . . . . . .","den",". . . . . . . . . . . . . . . . . . . . . . . . . . . . . . .",null," ",". . . . . . . . . . . . . . . . . . . . . . . . . "]
[null,"Ort"," ","Datum",null,null,"Unterschrift"]

{"sheet":"RK quer","index":10,"n_rows":37,"n_cols":8,"rows_kept":37,"cut":false,"hidden":false,"merged":[[0,0,0,7],[35,6,35,7],[35,0,35,1],[5,2,5,7],[8,6,8,7],[16,2,16,7],[17,2,17,7],[2,0,2,21]]}
[]
[]
["nicht rechnend"]
[]
[]
["Name des Reisenden:"]
[]
[]
[null,null,"Datum",null,"Uhrzeit",null,"Reisedauer"]
[]
[]
["Abfahrt",null,null,null,null,null,"Gesamtdauer in Tagen"]
[null,null,null,null," "]
["Rückkehr",null,null," "]
[]
[]
["Grund und Ort"]
["der Reise"]
[]
[]
[]
["Kostenpauschale für Mehraufwand für Verpflegung",null,null,null,null,null,null,"EURO"]
[]
[]
["volle Reisetage","24 Stunden",null,"Tage","zu ",28]
[null,null,null,null,null,null," "]
["erster Reisetag","zeitunabhängig",null,"Tag","zu ",14]
[null,null,null,null,null,null," "]
["letzter Reisetag","zeitunabhängig",null,"Tag","zu ",14]
[]
[]
["Ich bestätige durch Unterschrift die Richtigkeit der obigen Angaben und der Abrechnung"]
[]
[]
[]
[". . . . . . . . . . . . . . . . . . . . . . . . . . . . . . .",null,"den",". . . . . . . . . . . . . . . . . . . . . . . . . . . . . . .",null," ",". . . . . . . . . . . . . . . . . . . . . . . . . . . ."]
["Ort",null," ","Datum",null,null,"Unterschrift"]